bitfinex-derivatives/quotes_ETHF0:USTF0_20240829
["timestamp","ask_amount","ask_price","bid_price","bid_amount"]
[1724896589966,3.2078,2527.6,2527.4,0.39556]
[1724896590765,0.39552,2527.7,2527.4,0.39556]
[1724896596169,0.4014493,2527.8,2527.5,0.39554]
[1724896596371,0.4014493,2527.8,2527.3,0.7718]
[1724896596372,0.4014493,2527.8,2527.6,0.3544]
[1724896596575,0.4014493,2527.8,2527.7,0.3662]
[1724896597279,0.0059393,2527.8,2527.7,0.3662]
[1724896597783,0.4014393,2527.8,2527.7,0.3662]
[1724896598080,0.0059393,2527.8,2527.7,0.3662]
[1724896598375,0.0059393,2527.8,2527.7,4.71771]
[1724896600775,0.0059393,2527.8,2527.7,0.76171]
[1724896600979,0.0059393,2527.8,2527.7,0.3662]
[1724896601580,0.0059393,2527.8,2527.7,0.76171]
[1724896605179,0.0059393,2527.8,2527.7,1.13721]
[1724896607885,0.0059393,2527.8,2527.7,0.7417]
[1724896608080,0.39552,2527.7,2527.4,0.39554]
[1724896608686,1.4838493,2527.8,2527.5,0.39554]
[1724896609887,0.39554,2527.6,2527.3,4.3212]
[1724896610081,2.0770993,2527.8,2527.3,1.1134]
[1724896610590,0.39555,2527.5,2527.3,1.1134]
[1724896611675,0.39554,2527.6,2527.3,1.50897]
[1724896611883,1.0883393,2527.8,2527.5,0.39554]
[1724896612076,0.0059393,2527.8,2527.5,1.42]
[1724896612586,0.0059393,2527.8,2527.6,0.39552]
[1724896612780,0.0059393,2527.8,2527.7,0.3671]
[1724896612984,0.4014393,2527.8,2527.7,0.7352]
[1724896613282,0.39552,2527.7,2527.3,1.7948]
[1724896613480,0.39553,2527.6,2527.4,0.7352]
[1724896613681,0.39554,2527.5,2527.2,0.4015193]
[1724896614184,1.1038,2527.7,2527.2,0.4015193]
[1724896614399,0.39553,2527.6,2527.3,0.39557]
[1724896614582,0.39553,2527.6,2527.4,0.3749]
[1724896614882,1.1038,2527.7,2527.2,0.4015193]
[1724896615089,0.39553,2527.6,2527.3,0.39557]
[1724896615282,0.39555,2527.5,2527.3,0.39557]
[1724896616086,0.39556,2527.4,2527.2,0.7764293]
[1724896616282,1.1038,2527.7,2527.2,0.3808393]
[1724896616482,3.2078,2527.6,2527.2,0.3808393]
[1724896616682,3.2078,2527.6,2527.2,0.0059393]
[1724896616884,0.39557,2527.4,2527.2,0.0059393]
[1724896617087,0.39558,2527.3,2527.2,0.0059393]
[1724896617289,6.39913,2527.3,2527.2,0.0059393]
[1724896617495,0.39564,2526.9,2526.8,3.3253551]
[1724896617991,0.39564,2526.9,2526.6,41.19568]
[1724896618298,0.39564,2526.9,2526.6,0.39568]
[1724896618983,0.39568,2526.7,2526.5,1.1344393]
[1724896619187,0.3717,2526.8,2526.5,0.7525393]
[1724896619383,0.76736,2526.8,2526.5,0.7525393]
[1724896621094,0.39567,2526.7,2526.5,0.7525393]
[1724896621793,0.76736,2526.8,2526.5,0.7525393]
[1724896622487,0.39567,2526.7,2526.5,0.7525393]
[1724896623297,0.3717,2526.8,2526.5,0.7525393]
[1724896623298,0.76736,2526.8,2526.5,0.7525393]
[1724896624189,0.39567,2526.7,2526.5,0.7525393]
[1724896625403,0.39568,2526.6,2526.5,0.7525393]
[1724896627291,0.39568,2526.7,2526.5,0.7525393]
[1724896629394,0.3698,2526.9,2526.6,0.39568]
[1724896629586,0.3698,2526.9,2526.6,0.75188]
[1724896629786,0.76544,2526.9,2526.6,0.75188]
[1724896630598,3.2078,2527.1,2526.6,3.7762]
[1724896630599,3.60342,2527.1,2526.6,3.7762]
[1724896630795,0.39562,2527.0,2526.7,0.39566]
[1724896631099,0.74792,2527.0,2526.7,0.39566]
[1724896631491,0.39566,2526.8,2526.6,0.75188]
[1724896631796,0.39565,2526.9,2526.7,0.39567]
[1724896632098,3.60342,2527.1,2526.8,0.39565]
[1724896632295,3.2078,2527.1,2526.9,1.14734]
[1724896633299,3.60341,2527.1,2526.9,0.7517]
[1724896634599,3.2078,2527.1,2526.9,0.7517]
[1724896634997,0.39562,2527.0,2526.9,0.7517]
[1724896635196,3.60342,2527.1,2526.9,0.7517]
[1724896635600,0.39562,2527.1,2526.9,0.7517]
[1724896636896,0.39561,2527.1,2526.9,1.14734]
[1724896637603,0.7155,2527.2,2526.9,0.7517]
[1724896637904,3.99086,2527.4,2527.1,0.3956]
[1724896638308,0.39558,2527.3,2527.1,0.3956]
[1724896638502,3.99087,2527.4,2527.1,0.3956]
[1724896639505,0.39558,2527.3,2527.1,0.3956]
[1724896640503,6.01423,2527.4,2526.9,0.7517]
[1724896640705,0.39562,2527.0,2526.9,0.7517]
[1724896640905,0.39562,2527.0,2526.9,0.3669]
[1724896643108,3.2078,2527.3,2526.6,5.40647]
[1724896643309,0.39566,2526.8,2526.6,0.7406]
[1724896643505,0.39568,2526.6,2526.5,0.0059393]
[1724896643708,1.43,2525.9,2525.7,0.3609]
[1724896643912,0.39582,2525.8,2525.3,0.39588]
[1724896644207,0.39581,2525.8,2525.4,0.39587]
[1724896644508,0.39581,2525.8,2525.3,0.76808]
[1724896644811,0.39581,2525.8,2525.3,0.3781393]
[1724896645510,1.8317393,2525.9,2525.3,2.2040193]
[1724896646103,1.8317393,2525.9,2525.4,0.39587]
[1724896646104,0.4017393,2525.9,2525.4,0.39587]
[1724896646509,0.39581,2525.8,2525.3,0.7740193]
[1724896648209,0.39583,2525.7,2525.3,0.3781393]
[1724896648508,0.39583,2525.7,2525.3,0.7740293]
[1724896649613,0.39583,2525.7,2525.3,0.3781393]
[1724896650212,0.39583,2525.7,2525.3,0.7740293]
[1724896650713,0.39582,2525.8,2525.3,0.7740293]
[1724896651312,0.0059393,2525.9,2525.3,0.7740293]
[1724896651313,0.39583,2525.7,2525.3,0.7740293]
[1724896657716,0.39583,2525.7,2525.3,3.9818293]
[1724896659606,0.39585,2525.6,2525.3,3.9818293]
[1724896659817,0.39587,2525.4,2525.3,3.5859393]
[1724896660019,0.39587,2525.4,2525.3,3.2137393]
[1724896660321,4.35587,2525.4,2525.3,3.2137393]
[1724896660512,5.45817,2525.4,2525.3,3.2137393]
[1724896660906,6.44786,2525.4,2525.3,3.2137393]
[1724896661122,9.65566,2525.4,2525.3,0.0059393]
[1724896661413,9.65566,2525.4,2525.3,0.00200657]
[1724896661617,15.65566,2525.4,2525.3,0.00200657]
[1724896661815,0.39597,2524.8,2524.7,3.2078]
[1724896662116,15.25979,2525.4,2524.6,0.7563]
[1724896662117,0.39598,2524.7,2524.6,0.7563]
[1724896662419,0.39597,2524.8,2524.6,0.7563]
[1724896662624,0.39596,2524.9,2524.6,0.7563]
[1724896662926,0.39597,2524.8,2524.6,0.7563]
[1724896665518,0.39596,2524.9,2524.6,0.7563]
[1724896666723,0.39596,2524.9,2524.6,1.15229]
[1724896668621,3.60374,2525.0,2524.7,0.39598]
[1724896669020,0.39595,2524.9,2524.7,0.39598]
[1724896669527,3.60374,2525.0,2524.7,0.39598]
[1724896670022,0.39595,2524.9,2524.6,1.15229]
[1724896670321,0.39595,2524.9,2524.6,0.7563]
[1724896670514,3.2078,2525.0,2524.6,0.7563]
[1724896670515,0.39597,2524.8,2524.6,0.7563]
[1724896671416,0.76526,2524.9,2524.6,1.15229]
[1724896671909,0.76526,2524.9,2524.6,41.95229]
[1724896672622,0.3693,2524.9,2524.7,0.39598]
[1724896674122,6.6278,2525.1,2524.8,0.39597]
[1724896674327,7.02373,2525.1,2524.8,0.39597]
[1724896674524,0.39594,2525.0,2524.8,0.39597]
[1724896676422,3.81592,2525.1,2524.8,0.39595]
[1724896678122,1.43,2525.0,2524.8,0.39595]
[1724896678917,1.43,2525.0,2524.9,0.39595]
[1724896679117,3.2078,2525.6,2524.9,1.43]
[1724896679422,1.8121,2525.8,2525.6,0.39584]
[1724896679623,1.8121,2525.8,2525.3,3.2078]
[1724896679624,2.20791,2525.8,2525.5,0.39585]
[1724896679819,1.43,2525.6,2525.4,1.11687]
[1724896680025,1.43,2525.5,2525.4,0.3652]
[1724896680218,1.82586,2525.5,2525.4,0.3652]
[1724896680419,1.82586,2525.5,2525.3,3.2078]
[1724896680620,0.39587,2525.4,2525.1,4.0480551]
[1724896680820,0.3959,2525.2,2525.1,3.6905551]
[1724896681022,0.39592,2525.1,2524.8,0.39596]
[1724896681231,1.43,2524.9,2524.7,0.3575]
[1724896681426,1.43,2524.9,2524.7,0.75348]
[1724896681926,1.43,2524.9,2524.8,0.39597]
[1724896682124,0.39593,2525.1,2524.8,0.39597]
[1724896682529,0.39593,2525.1,2524.7,0.75348]
[1724896683129,0.39594,2525.0,2524.7,0.3575]
[1724896683331,0.39593,2525.1,2524.7,0.3575]
[1724896683530,0.39593,2525.1,2524.8,0.39596]
[1724896683935,0.39594,2525.0,2524.7,0.75347]
[1724896684628,0.39593,2525.1,2524.7,0.75347]
[1724896685431,3.42,2525.2,2524.7,0.75347]
[1724896685432,0.39594,2525.0,2524.7,0.75347]
[1724896687940,0.39594,2525.0,2524.6,0.7306]
[1724896687941,3.42,2524.9,2524.6,0.7306]
[1724896688232,3.60374,2525.0,2524.7,0.39598]
[1724896688430,3.2078,2525.0,2524.8,0.39596]
[1724896689025,3.2078,2525.0,2524.9,0.39595]
[1724896689421,3.2078,2525.0,2524.7,0.39597]
[1724896689629,0.39596,2524.9,2524.6,1.12659]
[1724896690133,0.39598,2524.7,2524.6,0.7306]
[1724896690526,4.35678,2524.7,2524.5,3.3312944]
[1724896690730,0.39598,2524.7,2524.5,0.7422393]
[1724896691235,0.396,2524.6,2524.5,0.0059393]
[1724896691735,4.3568,2524.6,2524.5,0.0059393]
[1724896693033,0.396,2524.6,2524.5,0.0059393]
[1724896693233,6.6278,2524.7,2524.5,0.0059393]
[1724896693431,0.396,2524.6,2524.5,0.0059393]
[1724896695832,7.02379,2524.7,2524.5,0.0059393]
[1724896696039,0.396,2524.6,2524.5,0.0059393]
[1724896699744,11.3468,2524.6,2524.5,0.0059393]
[1724896699966,0.39609,2524.1,2523.7,3.3253551]
[1724896700253,0.3961,2524.0,2523.7,0.75023]
[1724896700448,0.3961,2524.0,2523.7,1.12793]
[1724896700648,0.3961,2524.0,2523.7,0.7318]
[1724896700844,0.3961,2524.0,2523.7,1.12794]
[1724896701150,0.39609,2524.1,2523.7,1.12794]
[1724896701352,0.39609,2524.0,2523.7,1.12794]
[1724896705150,0.39612,2523.8,2523.7,0.7318]
[1724896705350,3.81612,2523.9,2523.7,0.7318]
[1724896705952,3.42,2523.9,2523.7,0.7318]
[1724896706253,0.39612,2523.8,2523.7,0.3777]
[1724896706453,1.13542,2523.8,2523.7,0.3777]
[1724896707250,0.77502,2523.8,2523.7,0.3777]
[1724896707451,0.77502,2523.8,2523.7,0.743]
[1724896708045,1.43,2523.8,2523.7,0.743]
[1724896708262,3.2078,2524.0,2523.9,0.39611]
[1724896708263,1.43,2524.0,2523.9,0.39611]
[1724896708654,1.43,2524.0,2523.8,0.39611]
[1724896708857,1.43,2523.9,2523.8,0.39611]
[1724896710056,3.4259393,2524.2,2523.7,1.1131]
[1724896710358,0.39608,2524.1,2523.9,0.3961]
[1724896710751,3.4259393,2524.2,2523.7,1.1131]
[1724896710951,0.39612,2523.8,2523.7,0.743]
[1724896711558,7.77852,2523.8,2523.7,0.3653]
[1724896711762,0.39614,2523.7,2523.6,0.0059393]
[1724896712151,4.35854,2523.7,2523.6,0.0059393]
[1724896713262,14.5567,2523.7,2523.6,0.0059393]
[1724896713455,0.39623,2523.2,2523.0,0.356]
[1724896713654,3.42,2523.1,2523.0,0.356]
[1724896714156,3.81623,2523.1,2523.0,0.356]
[1724896715057,3.42,2523.1,2523.0,0.356]
[1724896715654,3.42,2523.3,2523.0,0.356]
[1724896715861,3.42,2523.3,2523.1,0.39623]
[1724896716057,3.81618,2523.5,2523.1,0.39623]
[1724896716660,6.6278,2523.7,2523.4,0.39618]
[1724896716859,3.2078,2523.7,2523.5,0.3818]
[1724896717162,7.02394,2523.7,2523.5,0.3818]
[1724896717662,6.6278,2523.7,2523.5,0.3818]
[1724896717964,6.6278,2523.7,2523.6,0.352]
[1724896718265,7.02394,2523.7,2523.6,0.352]
[1724896719065,6.6278,2523.7,2523.6,0.352]
[1724896720667,6.6278,2523.7,2523.6,0.74816]
[1724896720861,6.6278,2523.7,2523.6,0.352]
[1724896722261,3.42,2523.7,2523.6,0.352]
[1724896722468,3.81614,2523.7,2523.6,0.352]
[1724896722663,3.81614,2523.7,2523.5,0.3818]
[1724896723669,0.39616,2523.6,2523.5,0.3818]
[1724896724062,0.39617,2523.5,2523.3,0.3872]
[1724896724260,3.81617,2523.5,2523.3,0.7387]
[1724896724560,3.42,2523.5,2523.3,0.7387]
[1724896724967,3.81617,2523.5,2523.3,0.7387]
[1724896726563,3.42,2523.5,2523.3,1.1349]
[1724896726769,3.42,2523.5,2523.3,0.7387]
[1724896727164,3.81617,2523.5,2523.3,0.7387]
[1724896729865,3.81617,2523.5,2522.9,0.3813]
[1724896729866,0.39622,2523.2,2522.9,0.77756]
[1724896730066,0.39623,2523.1,2523.0,0.3854]
[1724896730467,3.81623,2523.2,2523.0,0.3854]
[1724896731259,0.39623,2523.1,2523.0,0.3854]
[1724896731459,0.39625,2523.0,2522.9,0.373]
[1724896731675,0.39625,2523.0,2522.9,0.7584]
[1724896733374,0.39625,2523.0,2522.8,0.00395954]
[1724896733375,0.39627,2522.9,2522.8,0.00395954]
[1724896733576,0.75307,2522.9,2522.8,0.00395954]
[1724896733781,4.71707,2522.9,2522.8,0.00395954]
[1724896735377,0.39627,2522.9,2522.8,0.00395954]
[1724896735769,7.02406,2523.0,2522.8,0.00395954]
[1724896736284,0.39627,2522.9,2522.8,0.00395954]
[1724896737875,7.02406,2523.0,2522.8,0.00395954]
[1724896738169,0.39627,2522.9,2522.8,0.00395954]
[1724896739378,7.02406,2523.0,2522.8,0.00395954]
[1724896739880,3.81626,2523.0,2522.8,0.00395954]
[1724896740778,3.81626,2523.0,2522.8,0.40023954]
[1724896740967,3.81626,2523.0,2522.9,0.3789]
[1724896741169,3.42,2523.0,2522.9,0.77517]
[1724896741370,3.81623,2523.2,2522.9,0.7477]
[1724896741572,3.81623,2523.2,2523.0,0.39624]
[1724896741872,3.81623,2523.2,2523.0,0.76624]
[1724896742071,3.42,2523.2,2523.0,0.76624]
[1724896742269,3.81622,2523.2,2523.0,0.76624]
[1724896742974,0.39623,2523.1,2523.0,0.37]
[1724896743481,4.35943,2523.1,2522.8,0.40022954]
[1724896743682,3.42,2523.0,2522.8,0.40022954]
[1724896743869,3.42,2523.0,2522.9,0.76627]
[1724896744977,3.42,2523.0,2522.9,1.14467]
[1724896745577,3.81625,2523.0,2522.9,1.14467]
[1724896745778,3.42,2523.0,2522.9,1.14467]
[1724896747481,3.81625,2523.0,2522.9,1.14467]
[1724896747683,3.81625,2523.0,2522.9,0.76627]
[1724896747883,3.81625,2523.0,2522.9,0.37]
[1724896748380,0.39627,2522.9,2522.8,0.00395954]
[1724896748573,1.14197,2522.9,2522.8,0.00395954]
[1724896748779,5.10597,2522.9,2522.8,0.00395954]
[1724896749384,1.14197,2522.9,2522.8,0.00395954]
[1724896749582,5.10597,2522.9,2522.8,0.00395954]
[1724896752272,1.14197,2522.9,2522.8,0.00395954]
[1724896752881,5.10597,2522.9,2522.8,0.00395954]
[1724896753188,1.14197,2522.9,2522.8,0.00395954]
[1724896753388,5.10597,2522.9,2522.8,0.00395954]
[1724896757180,0.3867,2522.9,2522.8,0.00395954]
[1724896757381,3.81626,2523.0,2522.8,0.00395954]
[1724896757985,1.43,2522.9,2522.8,0.00395954]
[1724896758985,1.82627,2522.9,2522.8,0.00395954]
[1724896759988,3.82627,2522.9,2522.8,0.00395954]
[1724896761488,3.43,2522.9,2522.8,0.40023954]
[1724896762793,3.43,2522.9,2522.8,4.36423954]
[1724896765082,3.82627,2522.9,2522.8,0.00395954]
[1724896765285,3.43,2522.9,2522.8,0.40023954]
[1724896766086,3.43,2522.9,2522.8,4.36423954]
[1724896766481,0.39622,2523.2,2522.8,4.36423954]
[1724896766683,3.2078,2523.3,2522.8,0.00395954]
[1724896766896,0.3962,2523.3,2523.1,0.39623]
[1724896767099,0.3962,2523.3,2523.2,0.3771]
[1724896768395,0.7666,2523.4,2523.2,0.3771]
[1724896768694,3.43,2523.3,2523.2,0.3771]
[1724896770293,3.8262,2523.3,2523.2,0.3771]
[1724896770496,3.43,2523.3,2523.2,0.3771]
[1724896770797,3.43,2523.5,2523.3,0.3962]
[1724896770985,3.43,2523.5,2523.4,0.3769]
[1724896771396,3.45313581,2523.5,2523.4,0.3769]
[1724896772187,3.45313581,2523.5,2523.4,0.77309]
[1724896772393,3.43,2523.5,2523.4,0.77309]
[1724896773199,3.43,2523.5,2523.4,0.3769]
[1724896773802,3.43,2523.5,2523.4,0.77309]
[1724896774492,3.43,2523.5,2523.4,3.98089]
[1724896775192,0.39613,2523.8,2523.4,3.5847]
[1724896775393,3.43,2523.8,2523.6,0.39615]
[1724896775888,3.43,2523.8,2523.7,0.3766]
[1724896776099,3.45314506,2523.8,2523.7,0.3766]
[1724896776296,3.45314506,2523.8,2523.7,0.77274]
[1724896776495,3.43,2524.0,2523.7,7.5468]
[1724896776696,3.43,2524.0,2523.9,0.39611]
[1724896777189,3.43,2524.0,2523.9,0.76241]
[1724896777394,3.43,2524.0,2523.9,0.3663]
[1724896777794,3.43,2524.0,2523.9,0.76241]
[1724896778094,3.43,2524.0,2523.9,4.72481]
[1724896778299,3.4359393,2524.2,2524.0,0.39608]
[1724896778793,3.4359393,2524.2,2524.1,0.3843]
[1724896778998,3.8319993,2524.2,2524.1,0.3843]
[1724896779195,4.2107993,2524.2,2524.1,0.3843]
[1724896780088,0.39609,2524.1,2523.9,0.3663]
[1724896780291,3.82609,2524.0,2523.9,0.3663]
[1724896784204,0.39611,2523.9,2523.7,0.78044]
[1724896784403,0.39611,2523.9,2523.7,0.3843]
[1724896784904,0.39611,2523.9,2523.5,3.3253551]
[1724896784905,0.39614,2523.7,2523.5,3.3253551]
[1724896785098,0.39614,2523.7,2523.6,0.3726]
[1724896785501,0.39613,2523.8,2523.6,0.3726]
[1724896785703,0.39612,2523.9,2523.6,0.3726]
[1724896785907,7.0339,2524.0,2523.7,0.39613]
[1724896786212,0.39611,2523.9,2523.7,0.39613]
[1724896786412,0.39611,2523.9,2523.6,0.76875]
[1724896788014,1.43,2523.7,2523.6,0.76875]
[1724896789707,1.82614,2523.7,2523.6,0.3726]
[1724896789905,1.43,2523.7,2523.6,0.3726]
[1724896790511,1.43,2523.7,2523.3,3.60399]
[1724896790812,0.74926,2523.6,2523.4,0.39619]
[1724896791005,0.74926,2523.6,2523.3,3.99239]
[1724896791205,0.74926,2523.6,2523.3,0.3884]
[1724896791206,0.39618,2523.5,2523.3,0.3884]
[1724896791807,0.39619,2523.4,2523.3,0.3884]
[1724896792304,3.82619,2523.4,2523.3,0.3884]
[1724896792504,3.43,2523.4,2523.3,0.7846]
[1724896793117,3.43,2523.4,2523.3,0.3884]
[1724896793520,3.43,2523.4,2523.3,0.7846]
[1724896793813,4.17926,2523.6,2523.3,0.7846]
[1724896794709,4.17926,2523.6,2523.4,0.39618]
[1724896796008,3.7831,2523.6,2523.4,0.39618]
[1724896796409,4.17926,2523.6,2523.4,0.39618]
[1724896797314,3.7831,2523.6,2523.4,0.39618]
[1724896798217,3.7831,2523.6,2523.4,0.39619]
[1724896798218,4.17926,2523.6,2523.4,0.39619]
[1724896799705,4.17926,2523.6,2523.5,0.39617]
[1724896799910,4.17926,2523.6,2523.4,0.39618]
[1724896800614,3.5841,2523.8,2523.7,0.39614]
[1724896800820,3.2078,2523.8,2523.7,0.39614]
[1724896801021,3.60393,2523.8,2523.6,0.39615]
[1724896801612,3.43,2523.7,2523.3,0.7846]
[1724896801915,3.43,2523.4,2523.3,0.7846]
[1724896802313,3.8095,2523.4,2523.3,0.7846]
[1724896803217,0.3962,2523.3,2523.1,0.7377]
[1724896803412,0.3962,2523.3,2523.1,0.39623]
[1724896803607,3.82622,2523.2,2523.0,3.60404]
[1724896803813,0.77163,2523.1,2523.0,3.2078]
[1724896804421,0.3754,2523.1,2523.0,3.2078]
[1724896804617,0.77163,2523.1,2523.0,3.2078]
[1724896805331,3.82623,2523.1,2523.0,3.2078]
[1724896805620,7.78943,2523.1,2523.0,3.2078]
[1724896806316,7.78943,2523.1,2522.8,0.35915954]
[1724896806317,0.39627,2522.9,2522.8,0.00395954]
[1724896806517,3.82627,2522.9,2522.8,0.00395954]
[1724896807226,3.43,2522.9,2522.8,0.40023954]
[1724896807414,3.43,2523.1,2522.8,3.96795954]
[1724896807610,3.82627,2522.9,2522.8,0.00395954]
[1724896809922,3.43,2522.9,2522.8,0.40023954]
[1724896810126,3.43,2522.9,2522.8,0.00395954]
[1724896810420,3.82627,2522.9,2522.8,0.00395954]
[1724896812015,1.43,2522.9,2522.8,0.00395954]
[1724896812226,1.43,2522.9,2522.8,4.36423954]
[1724896812427,1.43,2522.9,2522.8,0.40023954]
[1724896812725,1.43,2522.9,2522.8,4.36423954]
[1724896813331,1.43,2522.9,2522.8,0.40023954]
[1724896813925,1.43,2522.9,2522.8,4.36423954]
[1724896814527,1.43,2522.9,2522.8,0.40023954]
[1724896814934,1.43,2522.9,2522.8,0.00395954]
[1724896815232,1.43,2522.9,2522.8,0.40023954]
[1724896820039,1.54903098,2523.3,2522.8,3.96795954]
[1724896820040,1.43,2523.3,2522.8,3.96795954]
[1724896820230,1.43,2523.0,2522.9,0.3524]
[1724896820637,1.43,2523.0,2522.9,4.3164]
[1724896820836,1.43,2523.0,2522.9,4.71267]
[1724896822044,1.43,2523.0,2522.9,0.74867]
[1724896823643,1.43,2523.0,2522.9,3.95647]
[1724896824140,1.82625,2523.0,2522.9,3.5602]
[1724896824337,5.79025,2523.0,2522.9,3.2078]
[1724896824534,5.79025,2523.0,2522.8,0.00395954]
[1724896824535,0.39627,2522.9,2522.8,0.00395954]
[1724896824739,3.55264,2522.9,2522.8,0.00395954]
[1724896824938,7.51664,2522.9,2522.8,0.00395954]
[1724896825143,6.52597,2522.9,2522.8,0.00395954]
[1724896827249,6.71903905,2522.9,2522.8,0.00395954]
[1724896827650,4.52586905,2522.9,2522.8,0.00395954]
[1724896827841,3.2078,2523.5,2522.8,3.57735954]
[1724896828041,1.43,2523.1,2522.8,3.57735954]
[1724896828242,1.43,2523.2,2523.1,0.39623]
[1724896829056,1.43,2523.2,2522.8,3.57735954]
[1724896829258,1.43,2522.9,2522.8,3.97363954]
[1724896829755,0.39621,2523.3,2522.9,0.39625]
[1724896829756,1.43,2523.1,2522.9,0.39625]
[1724896830148,1.43,2523.1,2523.0,0.3618]
[1724896831244,1.43,2523.1,2522.9,0.39626]
[1724896831245,1.43,2523.1,2522.8,3.57735954]
[1724896831553,0.39624,2523.1,2523.0,0.3618]
[1724896831750,0.39624,2523.1,2522.8,3.57735954]
[1724896831960,0.39627,2522.9,2522.8,0.00395954]
[1724896832257,0.41948504,2522.9,2522.8,0.00395954]
[1724896832453,4.38348504,2522.9,2522.8,0.00395954]
[1724896833158,7.81348504,2522.9,2522.8,0.00395954]
[1724896834157,7.81348788,2522.9,2522.8,0.00395954]
[1724896838556,7.79027,2522.9,2522.8,0.00395954]
[1724896838756,7.81347798,2522.9,2522.8,0.00395954]
[1724896838953,7.79027,2522.9,2522.8,0.00395954]
[1724896839164,3.82627,2522.9,2522.8,0.00395954]
[1724896845364,3.43,2522.9,2522.8,0.40023954]
[1724896845666,6.8778,2523.3,2522.8,0.00395954]
[1724896845667,3.43,2523.1,2522.8,0.00395954]
[1724896845863,3.43,2523.1,2522.9,41.58386]
[1724896846267,3.82624,2523.1,2522.9,41.1876]
[1724896846456,3.43,2523.1,2522.9,0.78386]
[1724896846658,3.82623,2523.1,2522.9,0.3876]
[1724896847261,3.82623,2523.1,2522.9,0.78386]
[1724896847462,3.43,2523.1,2522.9,0.78386]
[1724896847669,3.82624,2523.1,2522.9,0.3876]
[1724896847856,0.7227,2523.5,2522.9,0.3876]
[1724896848062,3.43,2523.4,2523.0,3.9325]
[1724896848463,3.43,2523.2,2523.1,0.39623]
[1724896849071,0.39623,2523.1,2523.0,3.567]
[1724896849460,0.39623,2523.1,2523.0,0.3592]
[1724896849858,0.78413,2523.1,2523.0,0.3592]
[1724896851765,0.39623,2523.1,2523.0,0.3592]
[1724896855172,0.39627,2522.9,2522.8,0.00395954]
[1724896856469,4.36027,2522.9,2522.8,0.00395954]
[1724896856672,3.82626,2523.0,2522.8,0.00395954]
[1724896856871,3.82626,2523.0,2522.8,0.40022954]
[1724896856872,3.43,2523.0,2522.8,0.40022954]
[1724896857068,3.43,2523.0,2522.9,0.3545]
[1724896857269,3.82625,2523.0,2522.9,0.3545]
[1724896858575,3.43,2523.0,2522.9,0.3545]
[1724896858778,3.82625,2523.0,2522.9,0.3545]
[1724896860078,0.39627,2522.9,2522.8,0.00395954]
[1724896861079,4.36027,2522.9,2522.8,0.00395954]
[1724896864470,0.39627,2522.9,2522.8,0.00395954]
[1724896865775,4.36027,2522.9,2522.8,0.00395954]
[1724896865978,5.79027,2522.9,2522.8,0.00395954]
[1724896867487,6.16057,2522.9,2522.8,0.00395954]
[1724896868476,7.15124,2522.9,2522.8,0.00395954]
[1724896868787,7.17445151,2522.9,2522.8,0.00395954]
[1724896869178,14.16512151,2522.9,2522.8,0.00395954]
[1724896869379,0.3964,2522.1,2521.9,6.5331551]
[1724896869578,0.39638,2522.2,2522.0,0.739]
[1724896871880,1.43,2522.1,2522.0,0.739]
[1724896872087,3.43,2522.1,2522.0,0.739]
[1724896872292,3.43,2522.1,2522.0,4.7038]
[1724896872584,3.43,2522.1,2522.0,5.10021]
[1724896874697,3.43,2522.1,2522.0,4.7038]
[1724896874990,3.43,2522.1,2522.0,5.10021]
[1724896876083,3.43,2522.3,2522.2,0.39638]
[1724896876287,3.43,2522.3,2522.2,3.60418]
[1724896876795,0.0059393,2522.4,2522.3,0.39636]
[1724896877094,0.0059393,2522.4,2522.3,0.7196]
[1724896877393,0.4022793,2522.4,2522.3,0.7196]
[1724896878686,0.0059393,2522.4,2522.3,1.11596]
[1724896878894,0.0059393,2522.4,2522.3,5.08076]
[1724896886501,0.0059393,2522.4,2522.3,0.7196]
[1724896886701,0.39637,2522.3,2522.0,0.7513]
[1724896886993,3.43,2522.2,2522.1,0.7267]
[1724896889099,3.43,2522.2,2522.0,0.3549]
[1724896889299,0.39639,2522.1,2522.0,0.3549]
[1724896889491,0.39639,2522.1,2521.9,3.2078]
[1724896889686,3.43,2522.0,2521.9,3.2078]
[1724896892105,1.43,2522.0,2521.9,3.2078]
[1724896893500,5.79122,2522.0,2521.8,0.3699]
[1724896893806,1.82642,2522.0,2521.8,0.3699]
[1724896893996,0.39642,2521.9,2521.8,0.3699]
[1724896896102,0.39647,2521.6,2521.5,6.5331551]
[1724896896304,1.82647,2521.6,2521.5,6.5331551]
[1724896896897,1.82647,2521.6,2521.5,3.3253551]
[1724896898002,3.82647,2521.6,2521.5,3.3253551]
[1724896898907,0.3965,2521.4,2521.3,1.1186]
[1724896900104,3.9664,2521.4,2520.9,3.3253551]
[1724896900305,0.39656,2521.1,2520.9,3.3253551]
[1724896900503,0.39655,2521.1,2520.9,3.3253551]
[1724896901306,3.82654,2521.2,2520.9,3.3253551]
[1724896901512,0.99126,2521.4,2520.9,7.2917551]
[1724896901513,3.43,2521.4,2520.9,7.2917551]
[1724896901708,0.39648,2521.6,2521.3,3.60431]
[1724896901914,3.43,2521.5,2521.4,0.743]
[1724896902110,3.43,2521.5,2521.4,1.1309]
[1724896902505,3.82646,2521.7,2521.4,1.1309]
[1724896902913,3.82649,2521.5,2521.4,1.1309]
[1724896903113,3.82649,2521.5,2521.4,0.743]
[1724896903408,0.99126,2521.4,2520.6,40.8]
[1724896903616,0.39659,2520.9,2520.7,0.7419]
[1724896903816,3.82657,2521.0,2520.7,1.13851]
[1724896904711,3.43,2521.0,2520.8,0.39659]